[Event "36th Indian-ch U13 Open 2023"]
[Site "Secunderabad"]
[Date "2023.12.05"]
[Round "2.8"]
[White "Mrinmoy Rajkhowa"]
[Black "Sampreet Sudheer"]
[Result "1-0"]
[ECO "B27"]
[WhiteElo "1840"]
[BlackElo "1399"]
[Annotator "NA RC"]
[PlyCount "65"]
[EventDate "2023.12.04"]
[EventType "swiss"]
[EventCountry "IND"]
[SourceTitle "playchess.com"]
[Source "ChessBase"]
[SourceQuality "1"]
[TimeControl "5400+30"]

1. e4 {[%emt 0:00:06]} c5 {[%emt 0:00:23]} 2. Nf3 {[%emt 0:00:05]} g6 {[%emt 0:00:04]} 3. Bc4 {[%emt 0:02:29]} Bg7 {[%emt 0:00:16]} 4. c3 {[%emt 0:00:47]} Nf6 {[%emt 0:04:18]} 5. e5 {[%emt 0:03:36]} Ng4 {[%emt 0:03:13]} 6. Bxf7+ {[%emt 0:08:52]} Kxf7 {[%emt 0:00:07]} 7. Ng5+ {[%emt 0:00:04]} Kg8 {[%emt 0:02:19]} 8. Qxg4 {[%emt 0:00:21]} Bxe5 {[%emt 1:23:50]} 9. d4 {[%emt 0:21:13]} cxd4 {[%emt 0:00:00]} 10. cxd4 {[%emt 0:00:44]} d6 {[%emt 0:00:00]} 11. Qf3 {[%emt 0:02:55]} Bf6 {[%emt 0:00:00]} 12. Nc3 {[%emt 0:02:09]} Kg7 {[%emt 0:00:00]} 13. d5 {[%emt 0:09:32]} h6 {[%emt 0:00:00]} 14. Nge4 {[%emt 0:03:44]} Nd7 {[%emt 0:00:00]} 15. h3 {[%emt 0:04:45]} Ne5 {[%emt 0:00:00]} 16. Qe2 {[%emt 0:00:38]} Bf5 {[%emt 0:00:00]} 17. f4 {[%emt 0:10:06]} Nd7 {[%emt 0:00:00]} 18. O-O {[%emt 0:03:05]} Rc8 {[%emt 0:00:00]} 19. Nxf6 {[%emt 0:00:40]} Nxf6 {[%emt 0:05:30]} 20. Be3 {[%emt 0:01:25]} Kh7 {[%emt 0:00:00]} 21. Bd4 {[%emt 0:00:53]} Re8 {[%emt 0:00:00]} 22. g4 {[%emt 0:04:00]} Bd7 {[%emt 0:00:00]} 23. g5 {[%emt 0:04:14]} Nh5 {[%emt 0:00:00]} 24. f5 {[%emt 0:01:49]} Rg8 {[%emt 0:00:00]} 25. fxg6+ {[%emt 0:02:14]} Rxg6 {[%emt 0:00:00]} 26. Rf7+ {[%emt 0:02:18]} Ng7 {[%emt 0:00:00]} 27. Qe4 {[%emt 0:01:51]} e5 {[%emt 0:00:00]} 28. dxe6 {[%emt 0:03:15]} Qxg5+ {[%emt 0:00:00]} 29. Kh1 {[%emt 0:01:31]} Kg8 {[%emt 0:00:00]} 30. exd7 {[%emt 0:01:00]} Kxf7 {[%emt 0:00:00]} 31. dxc8=Q {[%emt 0:00:39]} Qg3 {[%emt 0:00:11]} 32. Rf1+ {[%emt 0:00:07]} Rf6 {[%emt 0:00:04]} 33. Rxf6# {[%emt 0:00:06]} 1-0

[Event "36th Indian-ch U13 Open 2023"]
[Site "Secunderabad"]
[Date "2023.12.05"]
[Round "2.9"]
[White "Siddhant Chaturvedi"]
[Black "Adharsh K"]
[Result "0-1"]
[ECO "B96"]
[WhiteElo "1386"]
[BlackElo "1831"]
[Annotator "NA RC"]
[PlyCount "44"]
[EventDate "2023.12.04"]
[EventType "swiss"]
[EventCountry "IND"]
[SourceTitle "playchess.com"]
[Source "ChessBase"]
[SourceQuality "1"]
[TimeControl "5400+30"]

1. e4 {[%emt 0:00:02]} c5 {[%emt 0:01:01]} 2. Nf3 {[%emt 0:00:15]} Nc6 {[%emt 0:00:11]} 3. d4 {[%emt 0:00:06]} cxd4 {[%emt 0:00:08]} 4. Nxd4 {[%emt 0:00:09]} Nf6 {[%emt 0:00:27]} 5. Nc3 {[%emt 0:00:09]} d6 {[%emt 0:00:07]} 6. Bg5 {[%emt 0:00:07]} e6 {[%emt 0:00:06]} 7. f4 {[%emt 0:03:43]} h6 {[%emt 0:06:37]} 8. Bh4 {[%emt 0:13:08]} Be7 {[%emt 0:07:00]} 9. Bf2 {[%emt 0:08:49]} a6 {[%emt 0:03:35]} 10. Qf3 {[%emt 0:03:23]} Bd7 {[%emt 0:02:08]} 11. O-O-O {[%emt 0:10:33]} Rc8 {[%emt 0:02:58]} 12. h3 {[%emt 0:11:06]} Qa5 {[%emt 0:05:55]} 13. g4 {[%emt 0:08:52]} Nb4 {[%emt 0:03:05]} 14. a3 {[%emt 0:07:50]} Rxc3 {[%emt 0:06:18]} 15. bxc3 {[%emt 0:06:33]} Qxa3+ {[%emt 0:00:05]} 16. Kd2 {[%emt 0:00:13]} Na2 {[%emt 0:00:46]} 17. Bd3 {[%emt 0:22:02]} Nxc3 {[%emt 0:01:58]} 18. Ra1 {[%emt 0:00:55]} Qb4 {[%emt 0:00:08]} 19. Ke3 {[%emt 0:01:06]} d5 {[%emt 0:00:50]} 20. Be1 {[%emt 0:00:54]} Bc5 {[%emt 0:00:13]} 21. Bxc3 {[%emt 0:00:28]} Qxc3 {[%emt 0:00:06]} 22. Ra4 {[%emt 0:00:28]} Bxa4 {[%emt 0:00:06]} 0-1

[Event "36th Indian-ch U13 Open 2023"]
[Site "Secunderabad"]
[Date "2023.12.05"]
[Round "2.10"]
[White "Siddhanth Poonja"]
[Black "Abhiraj De"]
[Result "1-0"]
[ECO "D00"]
[WhiteElo "1806"]
[BlackElo "1395"]
[Annotator "NA RC"]
[PlyCount "57"]
[EventDate "2023.12.04"]
[EventType "swiss"]
[EventCountry "IND"]
[SourceTitle "playchess.com"]
[Source "ChessBase"]
[SourceQuality "1"]
[TimeControl "5400+30"]

1. d4 {[%emt 0:00:04]} d5 {[%emt 0:00:12]} 2. Nc3 {[%emt 0:01:09]} Nf6 {[%emt 0:04:06]} 3. Bf4 {[%emt 0:00:14]} a6 {[%emt 0:01:30]} 4. e3 {[%emt 0:00:23]} Bf5 {[%emt 0:01:24]} 5. Nf3 {[%emt 0:00:55]} e6 {[%emt 0:01:29]} 6. Ne5 {[%emt 0:00:32]} Nbd7 {[%emt 0:03:08]} 7. g4 {[%emt 0:05:43]} Bg6 {[%emt 0:06:12]} 8. h4 {[%emt 0:01:18]} h6 {[%emt 0:18:24]} 9. Nxg6 {[%emt 0:01:55]} fxg6 {[%emt 0:00:11]} 10. Qd3 {[%emt 0:04:30]} Qe7 {[%emt 0:13:42]} 11. Qxg6+ {[%emt 0:03:25]} Qf7 {[%emt 0:02:26]} 12. Bd3 {[%emt 0:05:45]} Bd6 {[%emt 0:05:48]} 13. Bxd6 {[%emt 0:08:04]} cxd6 {[%emt 0:00:31]} 14. O-O-O {[%emt 0:04:14]} Qxg6 {[%emt 0:15:12]} 15. Bxg6+ {[%emt 0:02:38]} Ke7 {[%emt 0:00:25]} 16. Rdg1 {[%emt 0:03:20]} Raf8 {[%emt 0:03:35]} 17. f4 {[%emt 0:01:14]} Nb6 {[%emt 0:03:03]} 18. Bd3 {[%emt 0:07:49]} Nfd7 {[%emt 0:05:16]} 19. a4 {[%emt 0:02:32]} Nb8 {[%emt 0:06:10]} 20. a5 {[%emt 0:03:17]} N6d7 {[%emt 0:01:24]} 21. f5 {[%emt 0:00:17]} Nc6 {[%emt 0:01:40]} 22. fxe6 {[%emt 0:00:10]} Kxe6 {[%emt 0:00:34]} 23. Bf5+ {[%emt 0:00:14]} Ke7 {[%emt 0:00:11]} 24. Nxd5+ {[%emt 0:00:09]} Kd8 {[%emt 0:00:07]} 25. b4 {[%emt 0:00:50]} Nf6 {[%emt 0:00:44]} 26. Nf4 {[%emt 0:00:09]} Ke7 {[%emt 0:01:05]} 27. Ng6+ {[%emt 0:00:09]} Kf7 {[%emt 0:00:16]} 28. Nxh8+ {[%emt 0:00:05]} Rxh8 {[%emt 0:00:12]} 29. g5 {[%emt 0:00:07]} 1-0

[Event "36th Indian-ch U13 Open 2023"]
[Site "Secunderabad"]
[Date "2023.12.06"]
[Round "4.1"]
[White "Venkat, Raghav"]
[Black "Darshan, V P S"]
[Result "0-1"]
[ECO "B33"]
[WhiteElo "2205"]
[BlackElo "1670"]
[Annotator "RC"]
[PlyCount "150"]
[EventDate "2023.12.04"]
[EventType "swiss"]
[EventCountry "IND"]
[SourceTitle "playchess.com"]
[Source "ChessBase"]
[SourceQuality "1"]
[TimeControl "5400+30"]

1. e4 {[%emt 0:00:01]} c5 {[%emt 0:00:08]} 2. Nf3 {[%emt 0:00:04]} Nc6 {[%emt 0:00:05]} 3. d4 {[%emt 0:00:05]} cxd4 {[%emt 0:00:10]} 4. Nxd4 {[%emt 0:00:05]} Nf6 {[%emt 0:00:04]} 5. Nc3 {[%emt 0:00:05]} e5 {[%emt 0:00:08]} 6. Ndb5 {[%emt 0:00:05]} d6 {[%emt 0:00:05]} 7. Bg5 {[%emt 0:00:09]} a6 {[%emt 0:00:14]} 8. Na3 {[%emt 0:00:05]} b5 {[%emt 0:00:11]} 9. Nd5 {[%emt 0:00:06]} Be7 {[%emt 0:00:14]} 10. Bxf6 {[%emt 0:00:05]} Bxf6 {[%emt 0:00:05]} 11. c3 {[%emt 0:00:08]} O-O {[%emt 0:00:08]} 12. Nc2 {[%emt 0:00:04]} Bg5 {[%emt 0:00:13]} 13. a4 {[%emt 0:00:20]} bxa4 {[%emt 0:00:13]} 14. Rxa4 {[%emt 0:00:07]} a5 {[%emt 0:00:31]} 15. Bc4 {[%emt 0:00:06]} Rb8 {[%emt 0:00:03]} 16. b3 {[%emt 0:00:04]} Kh8 {[%emt 0:00:20]} 17. O-O {[%emt 0:00:13]} f5 {[%emt 0:00:27]} 18. exf5 {[%emt 0:00:23]} Bxf5 {[%emt 0:00:11]} 19. Nce3 {[%emt 0:00:07]} Bg6 {[%emt 0:00:09]} 20. Re1 {[%emt 0:00:39]} Bh4 {[%emt 0:03:45]} 21. Ra2 {[%emt 0:10:03]} a4 {[%emt 0:00:01]} 22. b4 {[%emt 0:09:02]} e4 {[%emt 0:00:01]} 23. Nf1 {[%emt 0:23:00]} Ne5 {[%emt 0:02:37]} 24. Ba6 {[%emt 0:05:27]} Qd7 {[%emt 0:06:42]} 25. Ng3 {[%emt 0:05:01]} Bf7 {[%emt 0:15:48]} 26. c4 {[%emt 0:09:37]} Bxd5 {[%emt 0:06:50]} 27. cxd5 {[%emt 0:20:13]} Bxg3 {[%emt 0:00:30]} 28. hxg3 {[%emt 0:00:20]} Rxb4 {[%emt 0:00:19]} 29. Qd2 {[%emt 0:01:40]} Rfb8 {[%emt 0:02:05]} 30. Rc1 {[%emt 0:02:39]} h6 {[%emt 0:03:00]} 31. Qc2 {[%emt 0:00:34]} Qa7 {[%emt 0:06:05]} 32. Be2 {[%emt 0:01:35]} Rf8 {[%emt 0:02:48]} 33. Bh5 {[%emt 0:00:56]} Nd3 {[%emt 0:01:18]} 34. Rf1 {[%emt 0:01:22]} Qc5 {[%emt 0:01:53]} 35. Qd2 {[%emt 0:02:51]} Qxd5 {[%emt 0:02:38]} 36. Be2 {[%emt 0:01:05]} Rd4 {[%emt 0:00:32]} 37. Bxd3 {[%emt 0:01:54]} Rxd3 {[%emt 0:00:21]} 38. Qe2 {[%emt 0:00:49]} Ra8 {[%emt 0:04:00]} 39. Rfa1 {[%emt 0:00:47]} Qc6 {[%emt 0:02:10]} 40. Qg4 {[%emt 0:01:16]} d5 {[%emt 0:00:35]} 41. Qf5 {[%emt 0:02:56]} Rc3 {[%emt 0:00:56]} 42. Rxa4 {[%emt 0:01:27]} Rc1+ {[%emt 0:04:59]} 43. Rxc1 {[%emt 0:00:13]} Qxc1+ {[%emt 0:02:02]} 44. Kh2 {[%emt 0:00:08]} Rxa4 {[%emt 0:00:55]} 45. Qf8+ {[%emt 0:00:08]} Kh7 {[%emt 0:00:04]} 46. Qf5+ {[%emt 0:00:04]} Kg8 {[%emt 0:00:21]} 47. Qe6+ {[%emt 0:00:10]} Kf8 {[%emt 0:01:09]} 48. Qd6+ {[%emt 0:02:16]} Ke8 {[%emt 0:00:16]} 49. Qe6+ {[%emt 0:01:22]} Kd8 {[%emt 0:01:37]} 50. Qd6+ {[%emt 0:00:08]} Kc8 {[%emt 0:01:38]} 51. Qe6+ {[%emt 0:00:06]} Kc7 {[%emt 0:00:26]} 52. Qe5+ {[%emt 0:00:17]} Kb7 {[%emt 0:00:24]} 53. Qxd5+ {[%emt 0:00:10]} Qc6 {[%emt 0:00:15]} 54. Qf7+ {[%emt 0:00:04]} Ka6 {[%emt 0:00:44]} 55. Qxg7 {[%emt 0:00:25]} Ra5 {[%emt 0:00:54]} 56. Qf7 {[%emt 0:00:14]} Rd5 {[%emt 0:01:16]} 57. g4 {[%emt 0:01:07]} Kb6 {[%emt 0:00:18]} 58. Qg7 {[%emt 0:00:10]} Qc7+ {[%emt 0:00:05]} 59. Qxc7+ {[%emt 0:00:05]} Kxc7 {[%emt 0:00:03]} 60. Kg3 {[%emt 0:00:06]} Re5 {[%emt 0:00:29]} 61. Kf4 {[%emt 0:00:04]} Kd6 {[%emt 0:00:03]} 62. g3 {[%emt 0:00:12]} Kd5 {[%emt 0:00:14]} 63. Ke3 {[%emt 0:00:07]} Rg5 {[%emt 0:00:03]} 64. Kf4 {[%emt 0:00:08]} Kd4 {[%emt 0:00:09]} 65. f3 {[%emt 0:00:05]} exf3 {[%emt 0:00:04]} 66. Kxf3 {[%emt 0:00:05]} Ke5 {[%emt 0:00:02]} 67. Kg2 {[%emt 0:00:06]} Rxg4 {[%emt 0:00:04]} 68. Kh3 {[%emt 0:00:04]} h5 {[%emt 0:00:07]} 69. Kh2 {[%emt 0:00:02]} Ke4 {[%emt 0:00:05]} 70. Kg2 {[%emt 0:00:04]} Ke3 {[%emt 0:00:06]} 71. Kh3 {[%emt 0:00:04]} Kf3 {[%emt 0:00:03]} 72. Kh2 {[%emt 0:00:04]} Rxg3 {[%emt 0:00:15]} 73. Kh1 {[%emt 0:00:04]} Kf2 {[%emt 0:00:09]} 74. Kh2 {[%emt 0:00:04]} h4 {[%emt 0:00:05]} 75. Kh1 {[%emt 0:00:03]} Rh3# {[%emt 0:00:05]} 0-1

[Event "36th Indian-ch U13 Open 2023"]
[Site "Secunderabad"]
[Date "2023.12.06"]
[Round "4.2"]
[White "Aakash G"]
[Black "Abheek Bhatt"]
[Result "1/2-1/2"]
[ECO "D36"]
[WhiteElo "1935"]
[BlackElo "1589"]
[Annotator "RC"]
[PlyCount "82"]
[EventDate "2023.12.04"]
[EventType "swiss"]
[EventCountry "IND"]
[SourceTitle "playchess.com"]
[Source "ChessBase"]
[SourceQuality "1"]
[TimeControl "5400+30"]

1. d4 {[%emt 0:00:03]} d5 {[%emt 0:00:04]} 2. c4 {[%emt 0:00:09]} e6 {[%emt 0:00:05]} 3. cxd5 {[%emt 0:00:04]} exd5 {[%emt 0:00:07]} 4. Nc3 {[%emt 0:00:04]} Nf6 {[%emt 0:00:09]} 5. Bg5 {[%emt 0:00:06]} c6 {[%emt 0:00:07]} 6. Qc2 {[%emt 0:00:06]} Be7 {[%emt 0:00:23]} 7. e3 {[%emt 0:00:06]} O-O {[%emt 0:00:12]} 8. Bd3 {[%emt 0:00:06]} h6 {[%emt 0:00:06]} 9. Bh4 {[%emt 0:00:42]} Re8 {[%emt 0:00:21]} 10. Nge2 {[%emt 0:00:12]} Ne4 {[%emt 0:00:09]} 11. Bxe7 {[%emt 0:00:08]} Qxe7 {[%emt 0:00:07]} 12. O-O {[%emt 0:00:27]} Bf5 {[%emt 0:01:31]} 13. Rae1 {[%emt 0:02:36]} Nxc3 {[%emt 0:04:53]} 14. Nxc3 {[%emt 0:01:35]} Bxd3 {[%emt 0:00:07]} 15. Qxd3 {[%emt 0:00:05]} Nd7 {[%emt 0:04:42]} 16. f3 {[%emt 0:00:10]} Nb6 {[%emt 0:00:11]} 17. e4 {[%emt 0:05:59]} Qb4 {[%emt 0:01:11]} 18. Re2 {[%emt 0:01:21]} c5 {[%emt 0:07:18]} 19. dxc5 {[%emt 0:02:09]} Qxc5+ {[%emt 0:00:45]} 20. Kh1 {[%emt 0:00:13]} dxe4 {[%emt 0:02:03]} 21. fxe4 {[%emt 0:01:36]} Rad8 {[%emt 0:03:12]} 22. Qf3 {[%emt 0:00:11]} Re7 {[%emt 0:02:57]} 23. Ref2 {[%emt 0:12:31]} f6 {[%emt 0:04:37]} 24. h4 {[%emt 0:03:44]} Kh7 {[%emt 0:06:58]} 25. a4 {[%emt 0:07:07]} Red7 {[%emt 0:04:49]} 26. Qg4 {[%emt 0:05:54]} Nc4 {[%emt 0:06:24]} 27. Qe2 {[%emt 0:17:53]} Ne5 {[%emt 0:18:38]} 28. Qh5 {[%emt 0:16:29]} Qe7 {[%emt 0:03:30]} 29. Nd5 {[%emt 0:00:18]} Rxd5 {[%emt 0:00:07]} 30. exd5 {[%emt 0:00:13]} Rxd5 {[%emt 0:00:15]} 31. Qf5+ {[%emt 0:02:48]} Kg8 {[%emt 0:00:33]} 32. Qe4 {[%emt 0:02:25]} Qd7 {[%emt 0:04:01]} 33. Qc2 {[%emt 0:13:23]} Rd4 {[%emt 0:04:23]} 34. Rf4 {[%emt 0:00:39]} Rd2 {[%emt 0:00:26]} 35. Qb3+ {[%emt 0:01:08]} Kh8 {[%emt 0:00:56]} 36. Qc3 {[%emt 0:02:02]} Rd3 {[%emt 0:04:07]} 37. Qc5 {[%emt 0:00:32]} b6 {[%emt 0:00:55]} 38. Qc1 {[%emt 0:02:28]} Rd2 {[%emt 0:01:34]} 39. a5 {[%emt 0:01:13]} bxa5 {[%emt 0:01:31]} 40. R4f2 {[%emt 0:00:54]} Rd4 {[%emt 0:00:50]} 41. Rf4 {[%emt 0:00:15]} Rd2 {[%emt 0:00:23]} 1/2-1/2

[Event "36th Indian-ch U13 Open 2023"]
[Site "Secunderabad"]
[Date "2023.12.06"]
[Round "4.3"]
[White "Vandan Alankar Sawai"]
[Black "Kolla Bhaavan"]
[Result "1-0"]
[ECO "B15"]
[WhiteElo "1619"]
[BlackElo "1917"]
[Annotator "RC"]
[PlyCount "97"]
[EventDate "2023.12.04"]
[EventType "swiss"]
[EventCountry "IND"]
[SourceTitle "playchess.com"]
[Source "ChessBase"]
[SourceQuality "1"]
[TimeControl "5400+30"]

1. e4 {[%emt 0:00:11]} c6 {[%emt 0:00:49]} 2. d4 {[%emt 0:00:23]} d5 {[%emt 0:00:03]} 3. Nc3 {[%emt 0:00:07]} dxe4 {[%emt 0:01:52]} 4. Nxe4 {[%emt 0:00:10]} Nf6 {[%emt 0:01:58]} 5. Nxf6+ {[%emt 0:00:17]} exf6 {[%emt 0:00:09]} 6. c3 {[%emt 0:02:48]} Bd6 {[%emt 0:00:37]} 7. Bd3 {[%emt 0:00:11]} O-O {[%emt 0:01:22]} 8. Ne2 {[%emt 0:00:19]} Re8 {[%emt 0:01:44]} 9. O-O {[%emt 0:00:44]} Nd7 {[%emt 0:03:23]} 10. Ng3 {[%emt 1:30:20]} Nf8 {[%emt 0:05:13]} 11. f4 {[%emt 0:00:00]} Qc7 {[%emt 0:25:59]} 12. Qf3 {[%emt 0:00:00]} Ng6 {[%emt 0:21:19]} 13. f5 {[%emt 0:00:00]} Bxg3 {[%emt 0:03:20]} 14. hxg3 {[%emt 0:00:00]} Ne7 {[%emt 0:01:16]} 15. Bd2 {[%emt 0:00:00]} Bd7 {[%emt 0:03:41]} 16. b4 {[%emt 0:00:00]} Rad8 {[%emt 0:03:13]} 17. g4 {[%emt 0:00:00]} Bc8 {[%emt 0:03:45]} 18. Bf4 {[%emt 0:00:00]} Qd7 {[%emt 0:01:35]} 19. Rae1 {[%emt 0:00:00]} Nd5 {[%emt 0:09:37]} 20. Bd2 {[%emt 0:00:00]} g6 {[%emt 0:03:36]} 21. Rxe8+ {[%emt 0:00:00]} Rxe8 {[%emt 0:00:17]} 22. c4 {[%emt 0:00:00]} Nxb4 {[%emt 0:05:38]} 23. Bxb4 {[%emt 0:00:00]} Qxd4+ {[%emt 0:00:04]} 24. Kh1 {[%emt 0:00:00]} c5 {[%emt 0:00:15]} 25. Bd2 {[%emt 0:00:00]} Rd8 {[%emt 0:00:27]} 26. fxg6 {[%emt 0:00:00]} hxg6 {[%emt 0:00:32]} 27. Bxg6 {[%emt 0:00:00]} fxg6 {[%emt 0:00:34]} 28. Bc3 {[%emt 0:00:00]} Qd6 {[%emt 0:01:07]} 29. Bxf6 {[%emt 0:00:00]} Rf8 {[%emt 0:00:37]} 30. g5 {[%emt 0:00:00]} Qe6 {[%emt 0:00:34]} 31. Qd3 {[%emt 0:00:00]} Qf7 {[%emt 0:00:44]} 32. Rf4 {[%emt 0:00:00]} Bf5 {[%emt 0:00:30]} 33. Qg3 {[%emt 0:00:00]} Qc7 {[%emt 0:00:35]} 34. Qh2 {[%emt 0:00:00]} Qd7 {[%emt 0:00:33]} 35. Qg3 {[%emt 0:00:00]} Rf7 {[%emt 0:00:27]} 36. Rh4 {[%emt 0:00:00]} Rh7 {[%emt 0:00:07]} 37. Qb8+ {[%emt 0:00:00]} Qc8 {[%emt 0:00:05]} 38. Rxh7 {[%emt 0:00:00]} Kxh7 {[%emt 0:00:11]} 39. Qh2+ {[%emt 0:00:00]} Bh3 {[%emt 0:01:21]} 40. Qxh3+ {[%emt 0:00:00]} Qxh3+ {[%emt 0:00:07]} 41. gxh3 {[%emt 0:00:00]} Kg8 {[%emt 0:00:10]} 42. Kg2 {[%emt 0:00:00]} Kf7 {[%emt 0:00:04]} 43. Kf3 {[%emt 0:00:00]} Ke6 {[%emt 0:00:04]} 44. Ke4 {[%emt 0:00:00]} b6 {[%emt 0:00:04]} 45. Bd8 {[%emt 0:00:00]} Kd6 {[%emt 0:00:04]} 46. h4 {[%emt 0:00:00]} Ke6 {[%emt 0:00:03]} 47. a4 {[%emt 0:00:00]} Kd7 {[%emt 0:00:05]} 48. Bxb6 {[%emt 0:00:00]} axb6 {[%emt 0:00:05]} 49. Kd5 {[%emt 0:19:30]} 1-0

[Event "36th Indian-ch U13 Open 2023"]
[Site "Secunderabad"]
[Date "2023.12.06"]
[Round "4.4"]
[White "Gaikwad Manas"]
[Black "Madhesh Kumar S"]
[Result "1/2-1/2"]
[ECO "C65"]
[WhiteElo "1916"]
[BlackElo "1580"]
[Annotator "RC"]
[PlyCount "132"]
[EventDate "2023.12.04"]
[EventType "swiss"]
[EventCountry "IND"]
[SourceTitle "playchess.com"]
[Source "ChessBase"]
[SourceQuality "1"]
[TimeControl "5400+30"]

1. e4 {[%emt 0:00:11]} e5 {[%emt 0:00:08]} 2. Nf3 {[%emt 0:00:05]} Nc6 {[%emt 0:00:05]} 3. Bb5 {[%emt 0:00:04]} Nf6 {[%emt 0:00:07]} 4. d3 {[%emt 0:00:04]} Bc5 {[%emt 0:00:09]} 5. O-O {[%emt 0:00:06]} d6 {[%emt 0:00:55]} 6. c3 {[%emt 0:04:47]} O-O {[%emt 0:01:28]} 7. h3 {[%emt 0:00:04]} h6 {[%emt 0:00:29]} 8. Re1 {[%emt 0:04:01]} Bd7 {[%emt 0:16:13]} 9. Be3 {[%emt 0:20:51]} Bxe3 {[%emt 0:12:23]} 10. fxe3 {[%emt 0:02:31]} Ne7 {[%emt 0:05:22]} 11. Bc4 {[%emt 0:00:47]} Ng6 {[%emt 0:01:09]} 12. Nbd2 {[%emt 0:00:34]} c6 {[%emt 0:07:09]} 13. d4 {[%emt 0:04:22]} Qc7 {[%emt 0:06:51]} 14. Bd3 {[%emt 0:11:43]} c5 {[%emt 0:06:58]} 15. Rc1 {[%emt 0:01:36]} b5 {[%emt 0:04:12]} 16. Rf1 {[%emt 0:02:36]} Qb6 {[%emt 0:05:47]} 17. Bb1 {[%emt 0:01:37]} a5 {[%emt 0:04:54]} 18. Qe1 {[%emt 0:03:25]} Rae8 {[%emt 0:04:03]} 19. Qf2 {[%emt 0:04:17]} a4 {[%emt 0:03:41]} 20. d5 {[%emt 0:00:17]} c4 {[%emt 0:00:16]} 21. a3 {[%emt 0:00:33]} Nh7 {[%emt 0:06:33]} 22. g4 {[%emt 0:07:25]} Ng5 {[%emt 0:02:29]} 23. Kh2 {[%emt 0:02:06]} Qd8 {[%emt 0:01:16]} 24. Ng1 {[%emt 0:01:15]} Nh7 {[%emt 0:02:05]} 25. Ne2 {[%emt 0:00:30]} Qh4 {[%emt 0:00:52]} 26. Qg2 {[%emt 0:03:11]} Qg5 {[%emt 0:02:31]} 27. Qg1 {[%emt 0:01:30]} Nh4 {[%emt 0:00:27]} 28. Ng3 {[%emt 0:03:22]} g6 {[%emt 0:00:21]} 29. Bc2 {[%emt 0:07:33]} Kh8 {[%emt 0:00:58]} 30. Qf2 {[%emt 0:01:24]} Qe7 {[%emt 0:03:23]} 31. Rce1 {[%emt 0:01:23]} Bc8 {[%emt 0:01:02]} 32. Re2 {[%emt 0:00:45]} h5 {[%emt 0:01:16]} 33. gxh5 {[%emt 0:01:01]} f5 {[%emt 0:00:51]} 34. hxg6 {[%emt 0:06:55]} fxe4 {[%emt 0:00:04]} 35. Qf7 {[%emt 0:00:07]} Rxf7 {[%emt 0:00:49]} 36. Rxf7 {[%emt 0:00:01]} Nxg6 {[%emt 0:00:34]} 37. Rxe7 {[%emt 0:00:20]} Nxe7 {[%emt 0:00:16]} 38. Bxe4 {[%emt 0:04:04]} Nf6 {[%emt 0:00:30]} 39. Nf3 {[%emt 0:01:01]} Nexd5 {[%emt 0:00:23]} 40. Ng5 {[%emt 0:00:23]} Kg7 {[%emt 0:00:48]} 41. Rd2 {[%emt 0:00:21]} Nxe3 {[%emt 0:00:36]} 42. Rxd6 {[%emt 0:00:02]} Nxe4 {[%emt 0:01:07]} 43. N3xe4 {[%emt 0:00:18]} Rf8 {[%emt 0:00:00]} 44. Rb6 {[%emt 0:00:24]} Bf5 {[%emt 0:00:28]} 45. Rxb5 {[%emt 0:00:34]} Kg6 {[%emt 0:00:28]} 46. h4 {[%emt 0:01:41]} Rh8 {[%emt 0:00:27]} 47. Kg3 {[%emt 0:00:34]} Bxe4 {[%emt 0:00:20]} 48. Nxe4 {[%emt 0:00:07]} Nf5+ {[%emt 0:00:03]} 49. Kf3 {[%emt 0:00:34]} Rxh4 {[%emt 0:01:05]} 50. Nc5 {[%emt 0:00:27]} Rf4+ {[%emt 0:00:17]} 51. Ke2 {[%emt 0:00:06]} Ng3+ {[%emt 0:00:12]} 52. Ke3 {[%emt 0:00:47]} Nf5+ {[%emt 0:00:29]} 53. Kd2 {[%emt 0:00:06]} e4 {[%emt 0:00:32]} 54. Rb6+ {[%emt 0:01:25]} Kh5 {[%emt 0:00:25]} 55. Rf6 {[%emt 0:00:39]} e3+ {[%emt 0:00:05]} 56. Ke1 {[%emt 0:01:38]} e2 {[%emt 0:01:08]} 57. Nd7 {[%emt 0:00:00]} Kg5 {[%emt 0:00:51]} 58. Rf8 {[%emt 0:00:02]} Ng3 {[%emt 0:00:38]} 59. Rxf4 {[%emt 0:00:02]} Kxf4 {[%emt 0:00:06]} 60. Kf2 {[%emt 0:00:03]} Ke4 {[%emt 0:00:51]} 61. Nc5+ {[%emt 0:01:24]} Kd5 {[%emt 0:00:04]} 62. Nd7 {[%emt 0:00:19]} Ke4 {[%emt 0:00:32]} 63. Nc5+ {[%emt 0:00:27]} Kd5 {[%emt 0:00:11]} 64. Nxa4 {[%emt 0:00:38]} Kc6 {[%emt 0:00:04]} 65. b4 {[%emt 0:00:04]} cxb3 {[%emt 0:00:04]} 66. Nb2 {[%emt 0:00:02]} Kb5 {[%emt 0:00:19]} 1/2-1/2

[Event "36th Indian-ch U13 Open 2023"]
[Site "Secunderabad"]
[Date "2023.12.06"]
[Round "4.5"]
[White "Sharnarthi Viresh"]
[Black "Sanyam Srivastava"]
[Result "1-0"]
[ECO "E18"]
[WhiteElo "1850"]
[BlackElo "1560"]
[Annotator "NA RC"]
[PlyCount "77"]
[EventDate "2023.12.04"]
[EventType "swiss"]
[EventCountry "IND"]
[SourceTitle "playchess.com"]
[Source "ChessBase"]
[SourceQuality "1"]
[TimeControl "5400+30"]

1. d4 {[%emt 0:00:03]} Nf6 {[%emt 0:00:07]} 2. Nf3 {[%emt 0:00:07]} e6 {[%emt 0:00:06]} 3. c4 {[%emt 0:00:03]} d5 {[%emt 0:00:07]} 4. g3 {[%emt 0:00:03]} Be7 {[%emt 0:00:08]} 5. Bg2 {[%emt 0:00:06]} O-O {[%emt 0:00:14]} 6. O-O {[%emt 0:00:43]} b6 {[%emt 0:00:05]} 7. cxd5 {[%emt 0:00:18]} exd5 {[%emt 0:00:24]} 8. Nc3 {[%emt 0:00:04]} Bb7 {[%emt 0:00:27]} 9. Ne5 {[%emt 0:00:04]} Nbd7 {[%emt 0:11:55]} 10. Qa4 {[%emt 0:00:35]} Nxe5 {[%emt 0:10:53]} 11. dxe5 {[%emt 0:00:12]} Ne8 {[%emt 0:00:10]} 12. Rd1 {[%emt 0:01:55]} c6 {[%emt 0:00:15]} 13. e4 {[%emt 0:14:18]} Nc7 {[%emt 0:01:46]} 14. exd5 {[%emt 0:00:50]} cxd5 {[%emt 0:03:46]} 15. Be3 {[%emt 0:00:22]} b5 {[%emt 0:04:35]} 16. Qb3 {[%emt 0:00:44]} b4 {[%emt 0:03:39]} 17. Nxd5 {[%emt 0:00:12]} Nxd5 {[%emt 0:00:30]} 18. Bxd5 {[%emt 0:00:09]} Bxd5 {[%emt 0:00:07]} 19. Rxd5 {[%emt 0:00:05]} Qc7 {[%emt 0:00:15]} 20. Rad1 {[%emt 0:00:15]} a5 {[%emt 0:02:13]} 21. e6 {[%emt 0:02:31]} a4 {[%emt 0:06:33]} 22. Qd3 {[%emt 0:00:54]} Qc6 {[%emt 0:04:08]} 23. exf7+ {[%emt 0:08:11]} Rxf7 {[%emt 0:00:35]} 24. Rc1 {[%emt 0:00:51]} Qe6 {[%emt 0:04:03]} 25. Qc4 {[%emt 0:00:06]} Raf8 {[%emt 0:07:38]} 26. Ra5 {[%emt 0:05:32]} Qh3 {[%emt 0:01:39]} 27. Ra7 {[%emt 0:03:12]} Kh8 {[%emt 0:00:59]} 28. Qe4 {[%emt 0:06:28]} Re8 {[%emt 0:10:56]} 29. Bg5 {[%emt 0:09:18]} Ref8 {[%emt 0:04:25]} 30. Be3 {[%emt 0:01:12]} Re8 $18 {[%emt 0:00:16]} 31. Rcc7 {[%emt 0:10:00]} Rd8 {[%emt 0:00:45]} 32. Bd4 {[%emt 0:00:35]} Rxf2 {[%emt 0:17:50]} 33. Bxf2 {[%emt 0:00:38]} Rd1+ {[%emt 0:01:07]} 34. Be1 {[%emt 0:00:31]} Bf8 {[%emt 0:00:55]} 35. Ra8 {[%emt 0:00:08]} Rxe1+ {[%emt 0:01:10]} 36. Qxe1 {[%emt 0:00:02]} h6 {[%emt 0:00:07]} 37. Rxf8+ {[%emt 0:00:04]} Kh7 {[%emt 0:00:17]} 38. Qe4+ {[%emt 0:00:02]} Qf5 {[%emt 0:00:14]} 39. Qxf5# {[%emt 0:00:03]} 1-0